bitfinex/quotes_SOLUSD_20241118
["timestamp","ask_amount","ask_price","bid_price","bid_amount"]
[1731930723893,31.95982466,242.73,242.64,31.95982466]
[1731930724087,70.0,242.83,242.64,31.95982466]
[1731930724088,31.95982466,242.71,242.64,31.95982466]
[1731930725587,31.95982466,242.73,242.64,31.95982466]
[1731930726094,31.95982466,242.75,242.66,31.95982466]
[1731930726306,31.95982466,242.75,242.68,31.95982466]
[1731930726594,31.95982466,242.77,242.68,31.95982466]
[1731930726893,31.95982466,242.77,242.6,0.09367462]
[1731930727097,31.95982466,242.77,242.68,31.95982466]
[1731930727310,31.95982466,242.75,242.66,31.95982466]
[1731930729579,31.95982466,242.77,242.68,31.95982466]
[1731930730096,31.95982466,242.77,242.6,0.09367462]
[1731930730097,31.95982466,242.79,242.7,31.95982466]
[1731930731700,31.95982466,242.75,242.66,31.95982466]
[1731930731909,31.95982466,242.69,242.6,31.95982466]
[1731930733201,31.95982466,242.67,242.58,31.95982466]
[1731930733503,30.0,242.66,242.6,31.95982466]
[1731930734182,30.0,242.66,242.62,31.95982466]
[1731930734585,30.0,242.66,242.52,31.95982466]
[1731930734586,0.1,242.98,242.68,0.09367462]
[1731930734799,47.113213,242.99,242.68,0.09367462]
[1731930734800,31.95982466,242.91,242.8,31.95982466]
[1731930735279,31.95982466,242.91,242.81,20.0]
[1731930735702,31.95982466,242.91,242.82,31.95982466]
[1731930735878,30.5344,242.99,242.76,31.95982466]
[1731930735879,31.95982466,242.94,242.84,31.95982466]
[1731930737979,31.95982466,242.96,242.84,31.95982466]
[1731930738289,31.95982466,242.96,242.77,20.0]
[1731930738290,31.95982466,242.96,242.86,31.95982466]
[1731930738495,31.95982466,242.98,242.88,31.95982466]
[1731930738679,30.5344,242.99,242.78,0.1]
[1731930738680,30.5344,242.99,242.9,31.95982466]
[1731930740076,23.776884,242.98,242.9,31.95982466]
[1731930740282,23.776884,242.96,242.88,0.891]
[1731930741493,62.49422466,242.99,242.9,31.95982466]
[1731930741800,23.776884,242.98,242.9,31.95982466]
[1731930742010,31.95982466,242.97,242.89,20.0]
[1731930742504,31.95982466,242.99,242.9,31.95982466]
[1731930743376,30.4793,243.07,242.89,20.0]
[1731930743377,30.4793,243.07,242.95,31.95982466]
[1731930743592,31.95982466,243.05,242.95,31.95982466]
[1731930743777,31.95982466,243.01,242.91,31.95982466]
[1731930743983,31.95982466,242.97,242.88,0.891]
[1731930744184,31.95982466,242.93,242.88,0.891]
[1731930744394,31.95982466,242.95,242.88,0.891]
[1731930745398,31.95982466,242.97,242.88,20.891]
[1731930745585,31.95982466,242.99,242.9,20.0]
[1731930745905,31.95982466,242.97,242.9,20.0]
[1731930746280,31.95982466,242.99,242.9,20.0]
[1731930747000,31.95982466,242.97,242.9,20.0]
[1731930747191,31.95982466,242.97,242.88,20.891]
[1731930747508,31.95982466,243.01,242.92,20.0]
[1731930747797,31.95982466,243.01,242.94,20.0]
[1731930748002,30.4793,243.07,242.94,20.0]
[1731930748003,31.95982466,243.03,242.94,20.0]
[1731930748210,31.95982466,243.03,242.96,20.0]
[1731930748498,31.95982466,243.05,242.97,31.95982466]
[1731930748699,31.95982466,243.05,242.98,20.0]
[1731930749199,31.95982466,243.07,242.98,20.0]
[1731930749412,31.95982466,243.07,242.99,31.95982466]
[1731930750992,31.95982466,243.09,242.99,31.95982466]
[1731930751192,31.95982466,243.11,243.03,31.95982466]
[1731930751388,31.95982466,243.13,243.03,31.95982466]
[1731930751783,31.95982466,243.15,243.05,31.95982466]
[1731930752101,31.95982466,243.13,243.03,31.95982466]
[1731930752302,19.50878734,243.13,243.04,19.50878734]
[1731930753583,19.50878734,243.08,243.0,19.50878734]
[1731930753788,19.50878734,243.06,242.99,20.0]
[1731930753988,19.50878734,243.08,242.99,20.0]
[1731930754713,19.50878734,243.08,243.0,19.50878734]
[1731930755685,19.50878734,243.08,242.98,19.50878734]
[1731930755881,19.50878734,243.08,242.99,20.12549]
[1731930759711,19.50878734,243.1,243.02,19.50878734]
[1731930759893,19.50878734,243.12,243.03,0.12549]
[1731930760093,19.50878734,243.1,243.02,19.50878734]
[1731930760494,19.50878734,243.14,243.04,19.50878734]
[1731930762005,23.776884,243.13,243.05,20.0]
[1731930762411,19.50878734,243.12,243.04,19.50878734]
[1731930763189,0.2,243.24,243.1,19.50878734]
[1731930763392,19.50878734,243.2,243.11,19.50878734]
[1731930763705,70.2,243.26,243.03,0.12549]
[1731930763706,19.50878734,243.18,243.09,19.50878734]
[1731930763912,19.50878734,243.16,243.05,19.50878734]
[1731930764116,0.1,243.21,243.05,19.50878734]
[1731930764117,19.50878734,243.14,243.06,20.0]
[1731930764411,35.5744,243.23,243.06,20.0]
[1731930764715,19.50878734,243.2,243.11,19.50878734]
[1731930765818,19.50878734,243.22,243.13,19.50878734]
[1731930766191,31.363,243.23,243.11,19.50878734]
[1731930766513,19.60878734,243.26,243.12,20.0]
[1731930766703,19.60878734,243.26,243.17,19.50878734]
[1731930767011,19.60878734,243.26,243.12,20.0]
[1731930767012,19.50878734,243.22,243.12,20.0]
[1731930767312,19.50878734,243.22,243.14,19.50878734]
[1731930767615,19.50878734,243.2,243.12,20.0]
[1731930767809,19.50878734,243.22,243.12,20.0]
[1731930768115,19.50878734,243.24,243.14,19.50878734]
[1731930768498,19.50878734,243.22,243.08,0.12549]
[1731930768800,19.50878734,243.22,243.14,19.50878734]
[1731930769200,19.50878734,243.22,243.12,19.50878734]
[1731930769390,23.776884,243.21,243.12,19.50878734]
[1731930769789,23.776884,243.19,243.1,19.50878734]
[1731930770010,23.776884,243.19,243.12,19.50878734]
[1731930770210,23.776884,243.21,243.12,19.50878734]
[1731930770816,23.776884,243.23,243.14,19.50878734]
[1731930771689,23.776884,243.21,243.12,19.50878734]
[1731930772298,23.776884,243.21,243.14,19.50878734]
[1731930772813,23.776884,243.21,243.12,19.50878734]
[1731930775192,23.776884,243.21,243.14,19.50878734]
[1731930775802,23.776884,243.21,243.12,19.50878734]
[1731930776223,23.776884,243.21,243.14,19.50878734]
[1731930778099,19.50878734,243.2,243.12,20.0]
[1731930778504,19.50878734,243.2,243.11,19.50878734]
[1731930778505,19.50878734,243.16,243.07,19.50878734]
[1731930778810,19.50878734,243.16,242.94,0.1]
[1731930778811,19.50878734,243.16,243.05,19.50878734]
[1731930779017,19.50878734,243.16,243.07,19.50878734]
[1731930779224,19.50878734,243.18,243.09,19.50878734]
[1731930780025,19.50878734,243.18,243.1,0.12549]
[1731930780192,23.776884,243.21,243.1,12.31273326]
[1731930780391,12.18724326,243.19,243.11,20.0]
[1731930780615,12.18724326,243.19,243.12,0.12549]
[1731930781599,12.18724326,243.19,243.1,12.18724326]
[1731930781600,23.776884,243.18,243.1,12.18724326]
[1731930781795,23.776884,243.18,243.08,12.18724326]
[1731930781999,23.776884,243.16,243.07,20.12549]
[1731930782620,23.776884,243.16,243.08,12.18724326]
[1731930782821,23.776884,243.16,243.09,0.12549]
[1731930783125,23.776884,243.16,243.07,0.12549]
[1731930783289,12.18724326,243.15,243.07,20.12549]
[1731930783595,23.776884,243.14,243.07,20.12549]
[1731930783990,12.18724326,243.15,243.07,20.12549]
[1731930784234,23.776884,243.14,243.07,20.0]
[1731930784803,23.776884,243.14,243.03,0.09367462]
[1731930785005,23.776884,243.14,243.06,20.12549]
[1731930785306,12.18724326,243.15,243.06,20.12549]
[1731930785711,12.18724326,243.11,242.95,4.40241369]
[1731930785910,12.18724326,243.11,243.01,12.18724326]
[1731930786224,12.18724326,243.11,243.03,12.18724326]
[1731930786733,12.18724326,243.13,243.03,12.18724326]
[1731930787108,12.18724326,243.15,243.06,0.12549]
[1731930787423,23.776884,243.14,243.06,0.12549]
[1731930787617,31.124,243.13,243.06,0.12549]
[1731930787928,12.18724326,243.11,243.04,20.12549]
[1731930788127,30.0,243.1,243.04,20.12549]
[1731930788649,23.776884,243.12,243.04,20.12549]
[1731930789304,23.776884,243.12,243.05,12.18724326]
[1731930789722,23.776884,243.12,243.04,0.12549]
[1731930789930,43.31124326,243.13,243.04,20.12549]
[1731930792133,12.18724326,243.09,243.03,0.12549]
[1731930792430,23.776884,243.03,242.88,3.3889]
[1731930792606,12.18724326,242.94,242.88,3.3889]
[1731930793215,32.2245,243.05,242.91,12.18724326]
[1731930793439,32.2245,243.05,242.97,12.18724326]
[1731930793630,12.18724326,243.09,243.03,0.09367462]
[1731930794018,12.18724326,243.07,243.01,0.12549]
[1731930794614,12.18724326,243.07,243.0,20.0]
[1731930794615,12.18724326,243.05,242.9,0.12549]
[1731930794825,12.18724326,243.02,242.93,12.18724326]
[1731930795230,12.18724326,243.0,242.91,12.18724326]
[1731930795413,12.18724326,242.98,242.89,12.18724326]
[1731930795619,12.18724326,242.96,242.89,12.18724326]
[1731930796015,12.18724326,242.96,242.88,3.3889]
[1731930797031,12.18724326,242.96,242.89,0.12549]
[1731930797535,12.18724326,242.98,242.9,20.0]
[1731930797714,12.18724326,242.98,242.91,0.12549]
[1731930797914,30.978,243.01,242.92,20.21916462]
[1731930797915,12.18724326,243.0,242.92,20.21916462]
[1731930798216,12.18724326,243.0,242.93,0.12549]
[1731930799513,30.978,243.01,242.95,0.12549]
[1731930800428,12.18724326,243.0,242.91,12.18724326]
[1731930800631,12.18724326,242.98,242.92,20.0]
[1731930800936,12.18724326,242.98,242.89,12.18724326]
[1731930801116,12.18724326,242.98,242.9,20.0]
[1731930801519,12.18724326,242.96,242.89,0.21916462]
[1731930801723,30.978,243.01,242.88,3.3889]
[1731930801724,12.18724326,242.9,242.88,3.3889]
[1731930803210,12.18724326,242.96,242.89,0.12549]
[1731930804336,12.18724326,242.94,242.89,0.12549]
[1731930805911,12.18724326,242.96,242.9,0.09367462]
[1731930806111,12.18724326,242.98,242.91,0.12549]
[1731930806327,12.18724326,243.0,242.91,12.31273326]
[1731930806620,12.18724326,243.0,242.93,0.12549]
[1731930807431,30.978,243.01,242.95,0.12549]
[1731930808032,12.18724326,242.96,242.89,20.0]
[1731930808331,12.18724326,242.98,242.91,0.09367462]
[1731930809138,12.18724326,242.96,242.9,0.12549]
[1731930809339,12.18724326,242.92,242.88,3.3889]
[1731930809642,12.18724326,242.94,242.88,3.3889]
[1731930810336,12.18724326,242.98,242.89,0.09367462]
[1731930810520,12.18724326,242.98,242.9,0.12549]
[1731930811249,30.978,243.01,242.95,0.09367462]
[1731930811439,42.34214326,243.08,243.0,0.09367462]
[1731930811742,42.34214326,243.08,243.01,0.12549]
[1731930812446,42.34214326,243.08,243.0,0.12549]
[1731930812447,12.18724326,243.04,243.0,0.12549]
[1731930812647,12.18724326,243.02,242.96,0.12549]
[1731930813346,12.18724326,243.02,242.95,0.12549]
[1731930814046,3.08898002,242.97,242.95,0.12549]
[1731930815228,12.18724326,242.96,242.88,3.3889]
[1731930815623,12.18724326,242.96,242.89,0.09367462]
[1731930816343,3.08898002,242.97,242.89,12.18724326]
[1731930816540,12.18724326,242.96,242.9,0.09367462]
[1731930817043,3.08898002,242.97,242.89,12.28091788]
[1731930817342,12.18724326,242.9,242.88,3.3889]
[1731930817860,30.0,242.89,242.88,3.3889]
[1731930820047,12.18724326,242.9,242.88,3.3889]
[1731930820730,4.1165,242.92,242.88,3.3889]
[1731930820731,12.18724326,242.92,242.88,3.3889]
[1731930821551,12.18724326,242.9,242.88,3.3889]
[1731930822047,12.18724326,242.89,242.88,3.3889]
[1731930822428,12.18724326,242.9,242.88,3.3889]
[1731930822629,4.117,242.89,242.88,3.3889]
[1731930822945,42.18724326,242.89,242.88,3.3889]
[1731930824946,114.53957052,242.89,242.88,3.3889]
[1731930825253,114.53957052,242.89,242.6,0.2]
[1731930825254,24.002374,242.86,242.66,12.18724326]
[1731930825550,12.18724326,242.74,242.67,0.09367462]
[1731930825930,12.18724326,242.74,242.66,12.18724326]
[1731930826455,4.1188,242.79,242.66,12.18724326]
[1731930826659,12.18724326,242.74,242.67,0.09367462]
[1731930826967,12.18724326,242.74,242.66,12.18724326]
[1731930827254,12.18724326,242.74,242.68,0.12549]
[1731930827630,12.18724326,242.74,242.66,12.18724326]
[1731930827828,12.18724326,242.74,242.67,0.09367462]
[1731930828754,12.18724326,242.7,242.53,32.0257]
[1731930828936,12.18724326,242.7,242.61,12.18724326]
[1731930830036,12.18724326,242.7,242.62,0.12549]
[1731930830851,12.18724326,242.68,242.63,0.09367462]
[1731930831940,12.18724326,242.68,242.59,12.18724326]
[1731930832136,12.18724326,242.68,242.36,4.12]
[1731930832137,12.18724326,242.64,242.48,32.6349]
[1731930832333,12.18724326,242.66,242.56,12.18724326]
[1731930832948,12.18724326,242.66,242.57,0.09367462]
[1731930833142,12.18724326,242.66,242.56,12.18724326]
[1731930833761,12.18724326,242.66,242.58,0.12549]
[1731930833942,31.8044,242.67,242.58,0.12549]
[1731930833943,12.18724326,242.64,242.58,0.12549]
[1731930834145,31.8044,242.67,242.58,0.12549]
[1731930834146,12.18724326,242.62,242.58,0.12549]
[1731930834456,35.9252,242.67,242.55,0.09367462]
[1731930834457,12.18724326,242.6,242.55,0.09367462]
[1731930835138,12.18724326,242.6,242.52,20.09367462]
[1731930835363,12.18724326,242.6,242.54,0.09367462]
[1731930835662,12.18724326,242.6,242.54,0.21916462]
[1731930835839,12.18724326,242.64,242.56,20.09367462]
[1731930836053,12.18724326,242.64,242.58,0.09367462]
[1731930838643,12.18724326,242.62,242.58,0.09367462]
[1731930840361,12.18724326,242.64,242.58,0.09367462]
[1731930840866,12.18724326,242.62,242.58,0.09367462]
[1731930841573,12.18724326,242.6,242.57,0.25098]
[1731930841747,12.18724326,242.58,242.57,0.12549]
[1731930842742,12.18724326,242.58,242.49,12.18724326]
[1731930843070,12.18724326,242.52,242.45,12.18724326]
[1731930843364,12.18724326,242.52,242.42,32.8653]
[1731930843365,12.18724326,242.52,242.43,12.18724326]
[1731930843554,12.18724326,242.52,242.46,0.09367462]
[1731930844243,12.18724326,242.52,242.46,20.0]
[1731930844444,12.18724326,242.52,242.47,0.25098]
[1731930845059,12.18724326,242.52,242.48,0.09367462]
[1731930845257,12.18724326,242.54,242.5,0.09367462]
[1731930846567,27.897784,242.66,242.5,0.09367462]
[1731930846867,31.8044,242.67,242.54,0.21916462]
[1731930847048,31.8044,242.67,242.57,12.40640788]
[1731930847049,12.18724326,242.64,242.57,12.40640788]
[1731930847369,3.09326509,242.61,242.59,0.34465462]
[1731930849870,3.09326509,242.61,242.53,12.18724326]
[1731930849871,12.18724326,242.6,242.53,20.0]
[1731930850073,12.18724326,242.6,242.54,0.09367462]
[1731930850778,12.18724326,242.6,242.53,0.09367462]
[1731930851071,12.18724326,242.56,242.47,12.18724326]
[1731930851364,12.18724326,242.54,242.45,12.18724326]
[1731930851754,12.18724326,242.54,242.46,0.09367462]
[1731930851954,3.09326509,242.61,242.5,0.09367462]
[1731930852160,15.28050835,242.61,242.54,0.09367462]
[1731930852462,3.09326509,242.61,242.54,0.09367462]
[1731930852764,3.09326509,242.61,242.56,0.09367462]
[1731930852962,30.0,242.59,242.58,0.09367462]
[1731930853266,3.09326509,242.61,242.58,0.09367462]
[1731930853267,3.09326509,242.61,242.6,0.09367462]
[1731930853458,3.09326509,242.61,242.6,0.34465462]
[1731930855257,3.09326509,242.61,242.57,12.18724326]
[1731930855258,15.28050835,242.61,242.57,0.25098]
[1731930855472,15.28050835,242.61,242.55,0.25098]
[1731930855850,3.09326509,242.61,242.58,0.09367462]
[1731930857872,3.09326509,242.61,242.6,32.53189788]
[1731930858257,3.09326509,242.61,242.6,56.30878188]
[1731930858658,3.09326509,242.61,242.6,20.34465462]
[1731930859069,3.09326509,242.61,242.6,20.09367462]
[1731930859264,3.09326509,242.61,242.56,12.18724326]
[1731930859570,3.09326509,242.61,242.6,0.09367462]
[1731930860284,3.09326509,242.61,242.57,20.09367462]
[1731930860468,3.09326509,242.61,242.59,0.09367462]
[1731930861153,3.09326509,242.61,242.6,0.34465462]
[1731930862857,12.18724326,242.65,242.61,0.09367462]
[1731930868383,12.18724326,242.63,242.61,0.09367462]
[1731930868555,12.18724326,242.65,242.61,0.09367462]
[1731930869257,12.18724326,242.69,242.61,0.09367462]
[1731930869676,12.18724326,242.67,242.61,0.09367462]
[1731930870572,12.18724326,242.65,242.61,0.09367462]
[1731930873091,12.18724326,242.67,242.61,0.09367462]
[1731930873387,12.18724326,242.69,242.66,0.12549]
[1731930873585,12.18724326,242.69,242.67,0.21916462]
[1731930873889,12.18724326,242.69,242.68,0.12549]
[1731930874388,12.18724326,242.73,242.69,0.09367462]
[1731930874559,30.5008,242.79,242.73,0.21916462]
[1731930874764,12.18724326,242.81,242.77,0.21916462]
[1731930875087,12.18724326,242.81,242.78,0.25098]
[1731930877669,4.1167,242.91,242.79,0.21916462]
[1731930877862,12.18724326,242.84,242.81,0.21916462]
[1731930878063,12.18724326,242.88,242.82,0.12549]
[1731930878276,4.1167,242.91,242.82,0.12549]
[1731930878277,12.18724326,242.83,242.82,0.34465462]
[1731930879588,12.18724326,242.83,242.82,0.12549]
[1731930881969,12.18724326,242.83,242.73,20.0]
[1731930882267,12.18724326,242.78,242.72,0.12549]
[1731930882463,12.18724326,242.76,242.72,0.09367462]
[1731930882972,12.18724326,242.74,242.64,12.18724326]
[1731930883187,12.18724326,242.7,242.62,12.18724326]
[1731930883793,12.18724326,242.7,242.63,0.09367462]
[1731930884289,12.18724326,242.72,242.64,12.18724326]
[1731930884465,12.18724326,242.72,242.65,0.25098]
[1731930885397,12.18724326,242.74,242.66,0.09367462]
[1731930885687,4.119,242.78,242.7,0.09367462]
[1731930885688,12.18724326,242.78,242.7,0.09367462]
[1731930886495,33.1524,242.8,242.75,0.09367462]
[1731930886667,3.09174729,242.83,242.75,0.09367462]
[1731930886668,3.09174729,242.83,242.75,0.34465462]
[1731930887695,12.18724326,242.84,242.77,0.34465462]
[1731930887867,12.18724326,242.82,242.77,0.34465462]
[1731930890671,12.18724326,242.88,242.8,0.34465462]
[1731930890868,12.18724326,242.9,242.82,20.34465462]
[1731930891399,12.18724326,242.92,242.86,0.09367462]
[1731930891698,12.18724326,242.94,242.86,20.34465462]
[1731930893985,12.18724326,242.98,242.92,0.09367462]
[1731930894291,12.18724326,242.98,242.92,0.34465462]
[1731930895397,12.18724326,243.02,242.94,44.12153862]
[1731930895892,12.18724326,243.0,242.94,20.34465462]
[1731930896096,12.18724326,243.0,242.94,0.34465462]
[1731930896481,160.0,243.21,242.99,12.18724326]
[1731930896698,12.18724326,243.1,243.03,20.25098]
[1731930896896,12.18724326,243.08,243.03,0.25098]
[1731930897074,12.18724326,243.06,243.03,0.12549]
[1731930897512,12.18724326,243.04,242.91,12.18724326]
[1731930897691,12.18724326,243.0,242.92,20.25098]
[1731930897889,12.18724326,243.02,242.95,0.09367462]
[1731930898805,12.18724326,243.04,242.97,0.09367462]
[1731930899198,3.08879974,243.03,242.97,0.09367462]
[1731930900106,3.08879974,243.02,242.97,0.09367462]
[1731930900306,3.08879974,243.02,242.99,12.28091788]
[1731930900608,3.08879974,243.02,242.9,0.1]
[1731930900609,12.18724326,243.0,242.9,32.18724326]
[1731930900911,12.18724326,242.96,242.88,12.18724326]
[1731930901112,12.18724326,242.96,242.86,12.18724326]
[1731930901710,12.18724326,242.96,242.83,31.2216]
[1731930901711,12.18724326,242.96,242.88,12.18724326]
[1731930902310,4.114,243.08,242.92,12.18724326]
[1731930902604,12.18724326,243.06,242.98,12.28091788]
[1731930902815,12.18724326,243.06,243.0,0.09367462]
[1731930902994,12.18724326,243.08,243.04,0.09367462]
[1731930903186,9.26771876,243.14,243.05,0.12549]
[1731930903187,12.18724326,243.1,243.05,0.12549]
[1731930903393,12.18724326,243.08,243.03,0.12549]
[1731930903806,12.18724326,243.08,243.04,0.09367462]
[1731930904808,12.18724326,243.06,243.02,0.12549]
[1731930905010,12.18724326,243.04,243.02,0.12549]
[1731930905604,12.18724326,243.04,242.92,12.18724326]
[1731930905808,12.18724326,242.97,242.9,12.18724326]
[1731930905998,12.18724326,242.97,242.88,12.18724326]
[1731930906194,100.2526,243.09,242.92,12.18724326]
[1731930906401,12.18724326,242.99,242.9,12.18724326]
[1731930906588,12.18724326,242.97,242.88,12.18724326]
[1731930906793,70.0,243.05,242.86,12.18724326]
[1731930907102,12.18724326,242.95,242.86,12.18724326]
[1731930907307,12.18724326,242.95,242.88,12.18724326]
[1731930907507,12.18724326,242.95,242.89,0.09367462]
[1731930908108,12.18724326,242.95,242.89,23.87055862]
[1731930908328,12.18724326,242.95,242.9,0.25098]
[1731930908612,12.18724326,242.92,242.89,0.12549]
[1731930909684,12.18724326,242.94,242.89,0.12549]
[1731930909889,12.18724326,242.96,242.89,44.027864]
[1731930910116,12.18724326,242.96,242.9,0.21916462]
[1731930910289,12.18724326,242.96,242.91,0.12549]
[1731930910484,12.18724326,242.94,242.91,0.12549]
[1731930910903,12.18724326,242.92,242.77,30.4692]
[1731930911092,12.18724326,242.92,242.69,0.1]
[1731930911093,12.18724326,242.86,242.78,12.18724326]
[1731930911391,0.1,242.94,242.7,30.6322]
[1731930911392,12.18724326,242.84,242.76,12.18724326]
[1731930911596,12.18724326,242.84,242.77,0.09367462]
[1731930911791,12.18724326,242.84,242.76,12.18724326]
[1731930912003,12.18724326,242.82,242.7,36.10445632]
[1731930912210,12.18724326,242.84,242.75,12.18724326]
[1731930912888,12.18724326,242.82,242.76,0.09367462]
[1731930913418,12.18724326,242.82,242.64,12.28724326]
[1731930913419,12.18724326,242.78,242.69,12.18724326]
[1731930913716,12.18724326,242.76,242.69,12.18724326]
[1731930914294,19.56800452,242.76,242.69,0.09367462]
[1731930914614,19.56800452,242.76,242.69,20.0]
[1731930914820,19.56800452,242.74,242.69,20.0]
[1731930915007,19.56800452,242.74,242.57,32.4392]
[1731930915008,19.56800452,242.72,242.64,19.56800452]
[1731930915523,19.56800452,242.7,242.62,19.56800452]
[1731930915726,19.56800452,242.66,242.58,19.56800452]
[1731930915906,19.56800452,242.64,242.56,19.56800452]
[1731930916519,19.56800452,242.62,242.54,19.56800452]
[1731930916685,19.56800452,242.6,242.52,19.56800452]
[1731930916886,19.56800452,242.6,242.5,19.56800452]
[1731930917087,19.56800452,242.58,242.5,19.56800452]
[1731930917288,19.56800452,242.56,242.48,19.56800452]
[1731930917505,19.56800452,242.56,242.46,19.56800452]
[1731930917912,19.56800452,242.54,242.46,19.56800452]
[1731930918419,19.56800452,242.52,242.44,19.56800452]
[1731930918625,19.56800452,242.5,242.4,19.56800452]
[1731930919313,19.56800452,242.48,242.4,19.56800452]
[1731930919831,19.56800452,242.5,242.42,19.56800452]
[1731930920203,19.56800452,242.48,242.4,19.56800452]
[1731930921239,19.56800452,242.54,242.46,19.56800452]
[1731930921521,19.56800452,242.59,242.52,20.0]
[1731930921824,19.56800452,242.59,242.53,0.12549]
[1731930922011,19.56800452,242.59,242.54,20.21916462]
[1731930922221,33.2828,242.63,242.56,20.0]
[1731930922548,52.85080452,242.63,242.57,0.12549]
[1731930923619,19.56800452,242.61,242.55,0.25098]
[1731930924039,19.56800452,242.57,242.46,19.56800452]
[1731930924218,0.1,242.62,242.47,20.0]
[1731930924219,19.56800452,242.53,242.47,20.0]
[1731930924413,19.56800452,242.53,242.48,0.09367462]
[1731930924736,19.56800452,242.53,242.44,19.56800452]
[1731930924942,19.56800452,242.53,242.45,0.09367462]
[1731930925234,19.56800452,242.59,242.51,0.09367462]
[1731930925409,19.56800452,242.59,242.44,0.1]
[1731930925410,19.56800452,242.61,242.53,20.09367462]
[1731930926136,19.56800452,242.61,242.54,0.25098]
[1731930926339,52.85080452,242.63,242.57,0.09367462]
[1731930926513,19.56800452,242.63,242.57,20.09367462]
[1731930926709,19.56800452,242.67,242.6,0.25098]
[1731930926909,19.56800452,242.63,242.6,0.12549]
[1731930927236,19.56800452,242.65,242.6,0.12549]
[1731930927415,19.56800452,242.65,242.58,24.12153862]
[1731930927619,19.56800452,242.65,242.6,0.34465462]
[1731930927822,19.56800452,242.65,242.6,0.12549]
[1731930928038,19.56800452,242.63,242.58,0.25098]
[1731930928846,34.9888,242.71,242.58,0.12549]
[1731930928847,19.56800452,242.61,242.58,0.12549]
[1731930929222,19.56800452,242.63,242.58,0.12549]
[1731930930032,19.56800452,242.67,242.59,20.21916462]
[1731930930440,19.56800452,242.65,242.61,0.12549]
[1731930930647,19.56800452,242.63,242.61,0.12549]
[1731930931432,19.56800452,242.63,242.53,23.902374]
[1731930931639,19.56800452,242.61,242.55,0.09367462]
[1731930932138,19.56800452,242.59,242.54,0.12549]
[1731930932734,19.56800452,242.59,242.54,20.12549]
[1731930932946,19.56800452,242.59,242.52,23.902374]
[1731930933140,19.56800452,242.59,242.53,0.09367462]
[1731930933445,19.56800452,242.57,242.48,19.56800452]
[1731930933641,19.56800452,242.55,242.46,19.56800452]
[1731930934032,19.56800452,242.55,242.47,0.09367462]
[1731930934230,19.56800452,242.55,242.46,19.56800452]
[1731930934442,19.56800452,242.57,242.48,19.56800452]
[1731930934642,19.56800452,242.57,242.49,0.09367462]
[1731930934943,19.56800452,242.59,242.51,20.34465462]
[1731930935138,19.56800452,242.59,242.53,20.34465462]
[1731930935341,19.56800452,242.61,242.55,0.25098]
[1731930936743,30.7686,242.71,242.58,0.21916462]
[1731930936744,19.56800452,242.65,242.58,0.21916462]
[1731930936963,19.56800452,242.65,242.59,0.12549]
[1731930937254,19.56800452,242.63,242.59,0.12549]
[1731930937631,19.56800452,242.61,242.59,0.12549]
[1731930938247,12.243,242.64,242.59,0.12549]
[1731930938455,19.56800452,242.63,242.59,0.12549]
[1731930939230,12.243,242.64,242.58,0.09367462]
[1731930940449,19.56800452,242.63,242.58,0.09367462]
[1731930941351,12.243,242.64,242.58,0.09367462]
[1731930941947,19.56800452,242.63,242.58,0.09367462]
[1731930942428,19.56800452,242.61,242.55,20.0]
[1731930942740,19.56800452,242.61,242.52,19.56800452]
[1731930943131,19.56800452,242.61,242.53,20.0]
[1731930943548,19.56800452,242.61,242.54,0.12549]
[1731930945755,19.56800452,242.56,242.52,0.12549]
[1731930945930,19.56800452,242.56,242.49,20.0]
[1731930946134,4.1217,242.62,242.49,20.0]
[1731930946135,19.56800452,242.58,242.49,20.0]
[1731930946536,19.56800452,242.58,242.51,20.0]
[1731930946738,19.56800452,242.58,242.5,0.09367462]
[1731930946942,19.56800452,242.58,242.5,19.91265914]
[1731930947147,19.56800452,242.62,242.54,19.56800452]
[1731930947363,19.56800452,242.62,242.55,0.25098]
[1731930947958,31.81100452,242.64,242.59,0.12549]
[1731930948136,19.56800452,242.68,242.61,20.12549]
[1731930948348,12.23781954,242.69,242.63,0.12549]
[1731930948643,12.23781954,242.69,242.57,23.776884]
[1731930948644,12.7028,242.64,242.49,24.027864]
[1731930948841,12.23781954,242.6,242.52,44.027864]
[1731930949855,12.23781954,242.62,242.53,12.33149416]
[1731930950053,12.23781954,242.62,242.54,20.25098]
[1731930951025,24.94061954,242.64,242.57,0.21916462]
[1731930951242,12.7028,242.64,242.58,20.25098]
[1731930951428,12.23781954,242.63,242.58,20.25098]
[1731930952340,12.23781954,242.61,242.58,0.12549]